bitfinex-derivatives/quotes_ETHF0:USTF0_20251013
["timestamp","ask_amount","ask_price","bid_price","bid_amount"]
[1760348405062,0.43299,4154.2,4153.8,0.86319149]
[1760348405360,3.55241215,4154.1,4153.8,0.86319149]
[1760348405862,0.433,4154.1,4153.8,0.86319149]
[1760348406161,3.61551743,4154.1,4153.8,0.86319149]
[1760348406362,3.61551743,4154.1,4153.9,0.86319149]
[1760348406661,3.61551743,4154.1,4154.0,0.49963359]
[1760348407454,4.15663467,4154.1,4154.0,0.49963359]
[1760348407868,3.61551743,4154.1,4154.0,0.49963359]
[1760348408069,3.18251743,4154.1,4154.0,0.49963359]
[1760348408363,3.18251743,4154.1,4154.0,0.74283359]
[1760348408558,3.14060312,4154.2,4154.1,0.3595]
[1760348408753,3.14060312,4154.3,4154.1,0.3595]
[1760348408950,1.08232,4154.9,4154.5,0.1404]
[1760348408951,3.16872317,4154.6,4154.5,0.1404]
[1760348409149,0.00198488,4155.2,4155.0,0.1404]
[1760348409354,0.97417931,4155.1,4155.0,0.4999]
[1760348409563,4.14290248,4155.1,4155.0,0.4999]
[1760348411451,4.14290248,4155.1,4155.0,0.7431]
[1760348412760,3.71001248,4155.1,4155.0,0.7431]
[1760348412964,4.14290248,4155.1,4155.0,0.7431]
[1760348413559,3.16872317,4155.1,4155.0,0.9735]
[1760348415160,3.60161317,4155.1,4155.0,0.7431]
[1760348416860,3.60161317,4155.1,4155.0,0.4999]
[1760348417172,3.16872317,4155.1,4155.0,0.7431]
[1760348417857,0.00198488,4155.2,4155.0,0.614]
[1760348418062,0.00198488,4155.2,4155.1,0.8331]
[1760348419263,0.00198488,4155.2,4155.1,1.26599]
[1760348419765,0.00198488,4155.2,4155.1,0.8331]
[1760348421766,0.00198488,4155.2,4155.1,1.26599]
[1760348422369,0.00198488,4155.2,4155.1,2.56014569]
[1760348422569,0.43279,4156.1,4156.0,0.6354]
[1760348422770,0.43278,4156.3,4156.2,0.5974]
[1760348423265,3.58258434,4156.3,4156.2,0.5974]
[1760348423468,3.58258434,4156.3,4156.2,0.3617]
[1760348423771,3.58548591,4156.3,4156.2,0.3617]
[1760348424767,0.43279,4156.1,4156.0,0.1505]
[1760348425166,3.59355702,4156.1,4156.0,0.1505]
[1760348426573,3.59355702,4156.1,4156.0,0.5122]
[1760348427369,3.59355702,4156.1,4156.0,0.1505]
[1760348427576,3.59355702,4156.1,4156.0,0.5122]
[1760348432278,3.59355702,4156.1,4156.0,0.7479]
[1760348432675,3.59355702,4156.1,4156.0,0.5122]
[1760348433072,3.16076702,4156.1,4156.0,0.7479]
[1760348433274,0.43567157,4156.3,4156.2,0.4849]
[1760348433472,0.43567157,4156.3,4156.2,0.8466]
[1760348433676,3.14215249,4156.3,4156.2,0.8466]
[1760348434179,0.00290157,4156.3,4156.2,0.8466]
[1760348435379,3.18025036,4156.3,4156.2,0.3617]
[1760348437168,0.43278,4156.2,4156.0,0.1505]
[1760348437372,0.43278,4156.2,4156.1,0.3617]
[1760348437772,3.60725195,4156.2,4156.1,0.3617]
[1760348440972,3.60725195,4156.2,4156.1,0.5974]
[1760348444869,3.60725195,4156.2,4156.1,0.3617]
[1760348448483,3.60725195,4156.2,4156.1,0.607]
[1760348449284,3.60725195,4156.2,4156.1,0.3617]
[1760348454287,3.60725195,4156.2,4156.1,0.6029]
[1760348455678,0.43278,4156.2,4156.1,0.8303]
[1760348460895,3.61424976,4156.2,4156.1,0.3617]
[1760348461087,3.61424976,4156.2,4156.1,1.22628162]
[1760348461290,3.61424976,4156.2,4156.1,0.3617]
[1760348462088,4.1549949,4156.2,4156.1,0.3617]
[1760348462892,0.43284,4155.6,4155.5,0.1505]
[1760348463198,3.58626988,4155.6,4155.5,0.1505]
[1760348463397,4.12705506,4155.6,4155.5,0.1505]
[1760348464993,4.12705506,4155.6,4155.5,0.748]
[1760348465198,3.58626988,4155.6,4155.5,0.9754]
[1760348465400,4.12705861,4155.6,4155.5,0.9754]
[1760348469305,4.12703306,4155.6,4155.5,0.9754]
[1760348471708,3.58626988,4155.6,4155.5,0.9754]
[1760348472509,0.43284,4155.6,4155.5,0.9754]
[1760348472802,0.43284,4155.6,4155.5,2.26955569]
[1760348473406,0.43567157,4156.3,4156.2,0.8249]
[1760348473606,0.97632322,4156.3,4156.2,0.8249]
[1760348474106,0.43567157,4156.3,4156.2,0.8249]
[1760348475710,0.00290157,4156.3,4156.2,0.8249]
[1760348475906,1.28929923,4157.4,4157.3,0.3563]
[1760348476102,0.43265,4157.4,4157.3,0.8249]
[1760348476407,3.09122667,4157.4,4157.3,0.8249]
[1760348476605,0.43265,4157.5,4157.4,0.8249]
[1760348476998,0.00247133,4157.5,4157.4,1.25964574]
[1760348477196,0.00247133,4157.5,4157.4,0.82699574]
[1760348477704,0.43511133,4157.5,4157.4,0.82699574]
[1760348477913,0.43511133,4157.5,4157.4,1.68927055]
[1760348478102,0.43511133,4157.5,4157.4,0.59959574]
[1760348478303,0.43511133,4157.5,4157.4,0.82699574]
[1760348480805,3.50181742,4157.5,4157.4,0.35839574]
[1760348482007,3.50181742,4157.5,4157.4,0.58889574]
[1760348482214,3.50181742,4157.5,4157.4,0.82449574]
[1760348483110,3.50181742,4157.5,4157.4,0.35839574]
[1760348483504,0.43269,4157.1,4157.0,0.5093]
[1760348483703,0.43274,4156.6,4156.5,0.5093]
[1760348484112,3.55681942,4156.6,4156.5,0.5093]
[1760348484503,3.55681942,4156.6,4156.5,0.51140897]
[1760348484908,3.55681942,4156.6,4156.5,0.74190897]
[1760348485211,0.43274,4156.6,4156.5,0.97750897]
[1760348487910,0.43274,4156.6,4156.5,0.51140897]
[1760348488514,0.43274,4156.6,4156.5,0.74190897]
[1760348489010,0.43274,4156.6,4156.5,0.97750897]
[1760348489608,3.53424401,4156.6,4156.5,0.14690897]
[1760348489810,0.43282,4155.8,4155.7,0.3645]
[1760348490011,0.43282,4155.8,4155.7,0.21759103]
[1760348490214,3.502257,4155.8,4155.7,0.21759103]
[1760348490908,3.502257,4155.8,4155.7,0.22002869]
[1760348491104,3.502257,4155.8,4155.7,0.45052869]
[1760348491310,3.502257,4155.8,4155.7,0.22002869]
[1760348491706,41.88184,4156.7,4155.7,0.46853766]
[1760348491912,0.43274,4156.6,4156.5,0.5021]
[1760348492113,3.62286253,4156.6,4156.5,0.5021]
[1760348493718,0.43278,4156.2,4156.1,0.3645]
[1760348494016,0.43278,4156.2,4156.0,0.1376]
[1760348494017,0.43279,4156.1,4156.0,0.1376]
[1760348494210,0.43279,4156.1,4156.0,0.5021]
[1760348494417,3.57495355,4156.1,4156.0,0.5021]
[1760348497520,0.43282,4155.8,4155.7,0.00243766]
[1760348497918,3.61075596,4155.8,4155.7,0.36693766]
[1760348502225,3.61075596,4155.8,4155.7,0.83303766]
[1760348502429,3.17793596,4155.8,4155.7,0.83303766]
[1760348502727,1.08188,4156.5,4155.8,0.3645]
[1760348503026,0.43278,4156.2,4156.1,0.595]
[1760348503419,3.52608543,4156.2,4156.1,0.3645]
[1760348503619,0.43279,4156.1,4156.0,0.1376]
[1760348503821,0.43282,4155.8,4155.7,0.36693766]
[1760348504127,3.6266539,4155.8,4155.7,0.36693766]
[1760348508829,3.6266539,4155.8,4155.7,0.60813766]
[1760348509031,3.1938339,4155.8,4155.7,0.60813766]
[1760348509435,0.43281,4155.9,4155.8,0.3513]
[1760348509734,3.60322559,4155.9,4155.8,0.3513]
[1760348511431,3.17041559,4155.9,4155.8,0.8183]
[1760348512633,3.60322559,4155.9,4155.8,0.8183]
[1760348515330,3.17041559,4155.9,4155.8,1.25112]
[1760348515630,1.08184,4156.7,4155.7,0.00243766]
[1760348515631,3.02005923,4157.2,4157.0,0.1414]
[1760348515932,4.11218375,4157.1,4157.0,0.4867]
[1760348516232,4.11218375,4157.1,4157.0,0.1414]
[1760348516832,4.11218375,4157.1,4157.0,0.4867]
[1760348517539,0.43274,4156.6,4156.5,0.1414]
[1760348517740,1.08189,4156.5,4156.1,0.3453]
[1760348517937,0.54053523,4156.4,4156.1,0.3453]
[1760348518130,0.43279,4156.1,4156.0,0.3789]
[1760348518531,3.57180339,4156.1,4156.0,0.3789]
[1760348518731,3.57180339,4156.1,4156.0,0.7242]
[1760348519630,3.57180339,4156.1,4156.0,0.4867]
[1760348520534,3.57180339,4156.1,4156.0,0.7242]
[1760348520745,3.57180339,4156.1,4156.0,0.9537]
[1760348521336,0.43278,4156.2,4156.0,1.3865]
[1760348521533,0.43279,4156.1,4156.0,0.7242]
[1760348521935,3.52091146,4156.1,4156.0,0.4867]
[1760348522234,0.43273,4156.7,4156.6,0.3453]
[1760348522544,4.11705622,4156.7,4156.6,0.3453]
[1760348522732,0.43274,4156.6,4156.5,0.1414]
[1760348522931,0.97386299,4156.6,4156.5,0.1414]
[1760348523132,4.11706622,4156.6,4156.5,0.1414]
[1760348523341,0.43277,4156.3,4156.2,0.3453]
[1760348523737,3.54283353,4156.3,4156.2,0.3453]
[1760348523944,4.08395652,4156.3,4156.2,0.3453]
[1760348527548,4.08395652,4156.3,4156.2,0.5828]
[1760348527944,3.65118652,4156.3,4156.2,0.8123]
[1760348528150,0.43269,4157.1,4157.0,0.4867]
[1760348528344,0.97377554,4157.1,4157.0,0.4867]
[1760348528645,4.1343009,4157.1,4157.0,0.4867]
[1760348530042,0.43274,4156.6,4156.5,0.4867]
[1760348530552,3.58636848,4156.6,4156.5,0.4867]
[1760348530741,4.12745402,4156.6,4156.5,0.4867]
[1760348531543,4.12745402,4156.6,4156.0,0.1414]
[1760348531544,0.43278,4156.2,4156.1,0.3453]
[1760348531743,0.43278,4156.2,4155.9,1.29347175]
[1760348531744,0.0375,4155.8,4155.7,1.29590941]
[1760348532051,0.55282,4155.8,4155.7,0.00243766]
[1760348532348,0.59032,4155.8,4155.7,0.00243766]
[1760348532550,0.55282,4155.8,4155.7,0.00243766]
[1760348533051,0.55282,4155.8,4155.7,0.23993766]
[1760348533749,0.55282,4155.8,4155.7,0.58523766]
[1760348534140,0.49282,4155.8,4155.7,0.81473766]
[1760348534349,0.4328,4156.1,4156.0,0.6084]
[1760348534651,0.06,4156.2,4156.1,0.8123]
[1760348535250,0.49278,4156.2,4156.1,0.8123]
[1760348535453,0.55278,4156.2,4156.1,0.8123]
[1760348536653,0.49278,4156.2,4156.1,0.8123]
[1760348537646,0.55278,4156.2,4156.1,0.8123]
[1760348539255,0.55278,4156.2,4156.1,2.10577175]
[1760348540056,0.55278,4156.2,4156.1,0.8123]
[1760348540256,0.55278,4156.2,4156.1,2.10577175]
[1760348540746,0.55278,4156.2,4156.1,0.8123]
[1760348540949,0.55278,4156.2,4156.1,2.10577175]
[1760348541148,0.58348,4156.2,4156.1,0.3453]
[1760348541658,0.55278,4156.2,4156.1,0.5801]
[1760348541855,0.49278,4156.2,4156.1,0.806]
[1760348542051,0.49278,4156.2,4156.1,2.09947175]
[1760348542355,0.43278,4156.2,4156.1,0.806]
[1760348542558,0.43278,4156.2,4156.1,2.09947175]
[1760348543058,0.48198,4156.2,4156.1,2.09947175]
[1760348543268,0.53118,4156.2,4156.1,0.806]
[1760348544151,0.56188,4156.2,4156.1,0.3453]
[1760348545154,0.53118,4156.2,4156.1,0.5801]
[1760348545361,0.53118,4156.2,4156.1,2.09947175]
[1760348545558,0.53118,4156.2,4156.1,0.5801]
[1760348546657,0.53118,4156.2,4155.7,0.00243766]
[1760348546658,0.56191,4155.9,4155.8,1.29347175]
[1760348546858,0.53121,4155.9,4155.8,1.62817175]
[1760348547662,0.53121,4155.9,4155.8,1.86297175]
[1760348547865,0.56191,4155.9,4155.8,1.62817175]
[1760348551062,0.53121,4155.9,4155.8,1.62817175]
[1760348551366,0.53121,4155.9,4155.8,1.86297175]
[1760348551562,0.53121,4155.9,4155.8,2.08887175]
[1760348554170,0.56191,4155.9,4155.8,1.62817175]
[1760348555266,0.53121,4155.9,4155.8,1.62817175]
[1760348555566,0.53121,4155.9,4155.8,1.86297175]
[1760348556461,0.53121,4155.9,4155.8,2.08887175]
[1760348556661,0.48201,4155.9,4155.8,2.08887175]
[1760348557159,0.48201,4155.9,4155.8,0.7954]
[1760348557359,0.48201,4155.9,4155.8,1.22822]
[1760348557558,0.48201,4155.9,4155.7,0.00243766]
[1760348557559,0.48199,4156.2,4156.1,1.22818]
[1760348557758,0.43279,4156.2,4156.1,2.52521628]
[1760348557969,0.48199,4156.2,4156.1,2.52521628]
[1760348558370,0.43278,4156.2,4156.1,1.22818]
[1760348559470,0.48197,4156.4,4156.3,1.22816]
[1760348559970,0.48196,4156.4,4156.3,1.22816]
[1760348561474,0.0492,4156.4,4156.3,1.22816]
[1760348561772,0.4327,4157.1,4157.0,0.5968]
[1760348562272,3.13860139,4157.4,4157.3,0.7954]
[1760348562473,0.00247133,4157.5,4157.4,1.22805]
[1760348562872,0.53094,4158.6,4158.5,0.7056]
[1760348563067,0.4325,4158.9,4158.5,0.9315]
[1760348563270,1.08112,4159.4,4158.7,0.5695]
[1760348563568,0.0984,4158.8,4158.7,0.5695]
[1760348563773,0.10142508,4158.8,4158.7,0.57162767]
[1760348565978,0.10142508,4158.8,4158.7,0.79752767]
[1760348566471,0.05222508,4158.8,4158.7,0.79752767]
[1760348567875,0.08562508,4158.8,4158.7,0.79752767]
[1760348570473,0.51813508,4158.8,4158.7,0.79752767]
[1760348574186,0.48473508,4158.8,4158.7,0.79752767]
[1760348574586,0.00302508,4158.8,4158.7,1.23004767]
[1760348577391,0.46573508,4158.8,4158.7,0.79752767]
[1760348580084,0.00302508,4158.8,4158.7,1.23004767]
[1760348580985,0.43553508,4158.8,4158.7,1.23004767]
[1760348581789,0.43553508,4158.8,4158.7,0.79752767]
[1760348582287,0.43553508,4158.8,4158.7,1.23004767]
[1760348583182,0.65789508,4160.0,4159.9,0.2326]
[1760348583386,0.65789508,4160.0,4159.9,0.8036]
[1760348583585,3.72657063,4160.0,4159.9,0.5728]
[1760348583783,3.72657063,4160.0,4159.5,0.1279]
[1760348583784,0.49283,4159.6,4159.5,0.1279]
[1760348584192,0.49535675,4159.6,4159.5,0.3605]
[1760348584490,0.49535675,4159.6,4159.5,0.9315]
[1760348585093,0.46515675,4159.6,4159.5,0.9315]
[1760348585389,0.0793,4160.6,4160.0,0.1279]
[1760348585583,0.49277,4160.1,4160.0,0.7007]
[1760348585784,0.49277,4160.1,4160.0,0.9315]
[1760348586187,0.49468246,4160.1,4160.0,0.9315]
[1760348588194,0.49468246,4160.1,4160.0,1.36388]
[1760348588398,0.49468246,4160.1,4160.0,0.9315]
[1760348589395,0.51358246,4160.1,4160.0,0.4681]
[1760348590290,0.49283,4159.6,4159.5,0.9315]
[1760348591194,0.49283,4159.6,4159.5,1.36394]
[1760348592195,0.49283,4159.6,4159.5,1.79375509]
[1760348592794,0.46263,4159.6,4159.5,1.79375509]
[1760348593594,0.46263,4159.6,4159.5,2.22619509]
[1760348593895,0.46263,4159.6,4159.5,1.79375509]
[1760348594095,0.46263,4159.6,4159.5,2.22619509]
[1760348594595,0.43243,4159.6,4159.5,2.22619509]
[1760348595596,0.46263,4159.6,4159.5,2.22619509]
[1760348595897,0.49283,4159.6,4159.5,1.79375509]
[1760348596190,0.49283,4159.6,4159.5,2.22619509]
[1760348596701,0.49283,4159.6,4159.5,1.79375509]
[1760348596898,0.49283,4159.6,4159.5,0.7007]
[1760348596899,0.51173,4159.6,4159.5,0.7007]
[1760348597098,0.49283,4159.6,4159.5,0.7007]
[1760348597800,0.49283,4159.6,4159.5,0.9315]
[1760348598901,0.65481,4160.0,4159.6,0.3402]
[1760348599100,0.43242,4159.7,4159.6,0.5728]
[1760348599599,0.43242,4159.7,4159.6,0.8036]
[1760348602896,1.08109,4159.6,4159.2,0.3504]
[1760348603097,0.43247,4159.2,4159.1,0.66598]
[1760348603298,0.43247,4159.2,4159.1,0.2335]
[1760348603502,0.43247,4159.2,4159.1,0.5839]
[1760348604312,0.43247,4159.2,4159.1,1.01638]
[1760348604614,0.43247,4159.2,4159.1,1.23158]
[1760348605111,0.43247,4159.2,4159.1,2.09344809]
[1760348608112,0.43247,4159.2,4159.1,1.23158]
[1760348608812,0.43247,4159.2,4159.1,0.7991]
[1760348609013,0.43247,4159.2,4159.1,1.44659506]
[1760348609314,0.43247,4159.2,4159.1,0.5839]
[1760348610116,0.43247,4159.2,4159.1,1.23158]
[1760348613114,0.43247,4159.2,4159.1,2.52438213]
[1760348613313,0.43247,4159.2,4159.1,2.09190213]
[1760348613809,3.54637577,4159.2,4159.1,1.29280213]
[1760348614010,3.54637577,4159.2,4158.7,0.00212767]
[1760348614011,0.43248,4159.1,4159.0,1.19130335]
[1760348614313,3.54638577,4159.1,4159.0,1.32760335]
[1760348614517,3.54638577,4159.1,4159.0,0.4643]
[1760348615113,0.43251,4158.8,4158.7,1.6229298]
[1760348615413,0.43251,4158.8,4158.7,1.8607298]
[1760348616214,0.43251,4158.8,4158.7,0.56792767]
[1760348616413,0.43251,4158.8,4158.7,1.8607298]
[1760348616614,0.43251,4158.8,4158.7,0.56792767]
[1760348616811,0.43251,4158.8,4158.7,1.00044767]
[1760348617015,0.43251,4158.8,4158.7,2.2932498]
[1760348618108,3.11390577,4159.1,4158.7,2.0982298]
[1760348618306,3.54638577,4159.1,4159.0,0.7021]
[1760348618508,0.43248,4159.1,4159.0,1.56504538]
[1760348618710,3.52645852,4159.1,4159.0,1.56504538]
[1760348618909,3.09397852,4159.1,4159.0,2.23503538]
[1760348619109,0.43247,4159.2,4159.1,0.5658]
[1760348619310,0.43247,4159.2,4159.1,0.328]
[1760348620422,0.43247,4159.2,4159.0,1.3273134]
[1760348620423,0.43248,4159.1,4159.0,1.3273134]
[1760348624018,3.62816005,4159.1,4159.0,0.9993134]
[1760348624223,0.43249,4159.0,4158.9,0.8630134]
[1760348624620,3.61987566,4159.0,4158.9,0.328]
[1760348625424,3.61987566,4159.0,4158.9,0.5658]
[1760348625625,0.43249,4159.0,4158.9,1.2358]
[1760348625818,0.43249,4159.0,4158.9,0.8033]
[1760348626916,0.43249,4159.0,4158.9,0.5658]
[1760348627122,0.43249,4159.0,4158.9,0.328]
[1760348628027,0.43251,4158.8,4158.7,1.6229298]
[1760348628228,0.43251,4158.8,4158.7,0.33012767]
[1760348629547,0.43251,4158.8,4158.7,1.00044767]
[1760348630030,0.43251,4158.8,4158.7,1.23554767]
[1760348631328,0.43251,4158.8,4158.7,0.80302767]
[1760348632629,3.62184476,4158.8,4158.7,0.33012767]
[1760348632830,3.62184476,4158.8,4158.0,0.4517]
[1760348632831,0.43258,4158.1,4158.0,0.4517]
[1760348633835,0.9761492,4158.1,4158.0,0.45475554]
[1760348634235,0.43258,4158.1,4158.0,0.45475554]
[1760348634627,0.43257,4158.2,4158.1,0.7698]
[1760348637431,3.62049748,4158.2,4158.0,0.00305554]
[1760348638737,0.43258,4158.1,4158.0,0.00305554]
[1760348639035,3.62689135,4158.1,4158.0,0.00305554]
[1760348639934,3.62689135,4158.1,4158.0,0.32685554]
[1760348640740,1.08162,4157.5,4156.8,0.3238]
[1760348640929,0.43274,4156.6,4156.5,0.456]
[1760348641133,0.43274,4156.6,4156.5,0.902]
[1760348641435,0.43269,4157.1,4157.0,0.5782]
[1760348641632,0.43269,4157.1,4157.0,0.902]
[1760348641836,3.52394203,4157.1,4157.0,0.90432744]
[1760348642839,3.52394203,4157.1,4157.0,0.45832744]
[1760348643539,3.52394203,4157.1,4157.0,0.00232744]
[1760348643933,4.06646067,4157.1,4157.0,0.00232744]
[1760348644134,3.52394203,4157.1,4157.0,0.00232744]
[1760348645530,3.52394203,4157.1,4155.5,0.1322]
[1760348645531,3.09125203,4157.1,4155.5,0.3536]
[1760348645743,0.43283,4155.7,4155.5,0.1322]
[1760348645946,0.43283,4155.7,4155.6,0.3238]
[1760348646638,0.43283,4155.7,4155.6,0.32598222]
[1760348646942,3.52174779,4155.7,4155.6,0.32598222]
[1760348647135,3.52174779,4155.7,4155.6,0.00218222]
[1760348647730,3.08891779,4155.7,4155.6,0.77198222]
[1760348648143,3.08891779,4155.7,4155.6,0.54738222]
[1760348648344,3.08891779,4155.7,4155.6,0.32598222]
[1760348649441,3.08891779,4155.7,4155.6,0.54738222]
[1760348650942,1.08182,4156.8,4155.7,0.3238]
[1760348651243,0.43279,4156.1,4156.0,0.902]
[1760348659344,0.43278,4156.3,4156.2,0.43278]
[1760348659540,1.08183,4156.7,4156.3,0.43276]
[1760348659541,0.43277,4156.4,4156.3,0.43276]
[1760348659745,0.43471022,4157.1,4157.0,0.9304]
[1760348663957,0.43471022,4157.1,4157.0,0.7015]
[1760348664749,0.43274,4156.6,4156.5,0.3536]
[1760348664948,0.43274,4156.6,4156.5,0.7015]
[1760348665351,0.43279,4156.1,4156.0,1.63406813]
[1760348665551,0.43279,4156.1,4156.0,0.3477]
[1760348665754,0.43279,4156.1,4156.0,0.5766]
[1760348666056,0.43279,4156.1,4156.0,0.9245]
[1760348666855,0.43279,4156.1,4156.0,0.6956]
[1760348667060,0.43279,4156.1,4156.0,0.4801]
[1760348667251,0.43283,4155.7,4155.6,0.56558222]
[1760348669352,0.43279,4156.1,4156.0,0.1381]
[1760348669559,0.43279,4156.1,4156.0,0.5825]
[1760348669858,3.54597379,4156.1,4156.0,0.9304]
[1760348671054,0.43279,4156.1,4156.0,0.9304]
[1760348671658,0.43278,4156.2,4156.1,0.87719]
[1760348671853,0.43278,4156.2,4156.1,1.22509]
[1760348672361,0.43273,4156.7,4156.6,0.7923]
[1760348673654,0.43273,4156.7,4156.6,0.5634]
[1760348673961,0.43273,4156.7,4156.6,0.3479]
[1760348674158,0.43273,4156.7,4156.6,0.5634]
[1760348674460,0.43273,4156.7,4156.6,1.22504]
[1760348674960,0.43471022,4157.1,4157.0,0.9304]
[1760348675664,0.43471022,4157.1,4157.0,1.3631]
[1760348678262,0.43471022,4157.1,4157.0,0.9304]
[1760348680073,0.43471022,4157.1,4157.0,1.3631]
[1760348685270,0.43471022,4157.1,4157.0,0.9304]
[1760348685972,0.43471022,4157.1,4157.0,1.3631]
[1760348689675,0.43471022,4157.1,4157.0,0.9304]
[1760348690275,0.43471022,4157.1,4157.0,0.486]
[1760348690775,0.43471022,4157.1,4157.0,0.7103]
[1760348691078,0.43471022,4157.1,4157.0,0.9293]
[1760348692779,0.43471022,4157.1,4157.0,1.362]
[1760348692973,0.00202022,4157.1,4157.0,1.362]
[1760348693484,0.43262,4157.7,4157.6,0.87593]
[1760348693777,0.43261,4157.9,4157.6,0.4433]
[1760348693977,0.43261,4157.9,4157.8,1.20571]
[1760348694571,0.43473939,4157.9,4157.8,1.20571]
[1760348695078,0.43473939,4157.9,4157.8,0.7731]
[1760348695280,3.62413561,4157.9,4157.8,0.3298]
[1760348696881,0.43263,4157.6,4157.5,0.1317]
[1760348697482,0.43263,4157.6,4157.5,0.6858]
[1760348697781,0.43263,4157.6,4157.5,0.9048]
[1760348700176,0.43263,4157.6,4157.5,1.00764]
[1760348700381,3.62412561,4157.9,4157.8,0.4433]
[1760348700582,3.62412561,4157.9,4157.8,0.7731]
[1760348701179,0.43263,4157.6,4157.5,0.1317]
[1760348701686,0.43263,4157.6,4157.5,0.356]
[1760348701873,0.43263,4157.6,4157.5,0.6858]
[1760348702079,3.58424146,4157.6,4157.5,0.4615]
[1760348703981,3.58424146,4157.6,4157.5,0.6858]
[1760348704183,0.00212939,4157.9,4157.8,0.7731]
[1760348704383,0.43472939,4157.9,4157.8,0.7731]
[1760348704588,3.18029668,4157.9,4157.8,0.7731]
[1760348704896,3.18029668,4157.9,4157.8,2.50027051]
[1760348704897,0.00212939,4157.9,4157.8,2.50027051]
[1760348705086,0.86183937,4159.2,4159.0,0.1317]
[1760348705287,0.43247,4159.2,4159.1,0.5541]
[1760348705489,0.98198722,4159.2,4159.1,0.5541]
[1760348705688,4.14941615,4159.2,4159.1,0.5541]
[1760348706088,4.15111028,4159.2,4159.1,0.55705178]
[1760348706988,4.15111028,4159.2,4159.1,0.33275178]
[1760348707192,3.60159306,4159.2,4159.1,0.33275178]
[1760348709389,3.60159306,4159.2,4159.1,0.55705178]
[1760348709891,3.60159306,4159.2,4159.1,0.77605178]
[1760348711892,0.43416413,4159.2,4159.1,0.77605178]
[1760348712699,0.00169413,4159.2,4159.1,1.20853178]
[1760348714991,1.08092,4160.2,4159.6,0.43242]
[1760348715196,0.43235,4160.3,4160.2,0.5541]
[1760348715702,3.52749139,4160.3,4160.2,0.3298]
[1760348716000,3.52979179,4160.3,4160.2,0.3298]
[1760348717794,3.52979179,4160.3,4159.5,0.356]
[1760348717795,1.08101,4159.9,4159.5,0.356]
[1760348717999,0.43243,4159.6,4159.5,0.356]
[1760348718702,0.43243,4159.6,4159.5,0.6858]
[1760348719299,0.43243,4159.6,4159.5,0.9048]
[1760348719596,0.0023004,4160.3,4159.7,1.20832]
[1760348719797,0.4346504,4160.3,4160.2,0.7759]
[1760348720196,3.62542279,4160.3,4160.2,0.7759]
[1760348722298,0.4346504,4160.3,4160.2,0.7759]
[1760348722503,0.0023004,4160.3,4160.2,1.20826]
[1760348725802,0.0023004,4160.3,4160.0,0.1385]
[1760348725803,0.43222,4161.6,4161.5,0.3481]
[1760348726198,3.5636064,4161.6,4161.5,0.3481]
[1760348726503,3.5636064,4161.6,4161.5,0.6874]
[1760348726697,0.43402333,4161.6,4161.5,0.9144]
[1760348727905,0.43402333,4161.6,4161.0,0.1385]
[1760348727906,3.49629826,4161.6,4161.0,0.1385]
[1760348728202,0.00180333,4161.6,4161.5,0.9144]
[1760348728599,0.43402333,4161.6,4161.5,0.9144]
[1760348729709,0.00180333,4161.6,4161.5,1.34663]
[1760348729909,0.43402333,4161.6,4161.5,0.9144]
[1760348734509,0.43402333,4161.6,4161.5,0.6874]
[1760348734709,0.43402333,4161.6,4161.5,0.9144]
[1760348735712,0.00180333,4161.6,4161.5,0.9144]
[1760348736410,0.43402333,4161.6,4161.5,0.9144]
[1760348737910,0.43402333,4161.6,4161.5,0.4778]
[1760348738311,0.43402333,4161.6,4161.5,0.6874]
[1760348738709,0.43227,4161.1,4161.0,0.1385]
[1760348738914,0.43227,4161.1,4161.0,0.4778]
[1760348742416,0.43232,4160.6,4160.5,0.3481]
[1760348742609,0.43232,4160.6,4160.5,0.6874]
[1760348743417,0.43232,4160.6,4160.5,0.9144]
[1760348744116,1.08063,4161.3,4160.6,0.3393]
[1760348744316,0.97248036,4161.2,4161.1,0.5489]
[1760348744516,4.0985759,4161.2,4161.1,0.5489]
[1760348744726,4.0985759,4161.2,4161.1,0.3393]
[1760348744918,1.08075,4160.9,4160.6,0.5489]
[1760348745223,0.4323,4160.8,4160.7,0.3281]
[1760348745522,0.4323,4160.8,4160.7,0.5531]
[1760348747325,0.4323,4160.8,4160.7,0.7758]
[1760348748725,0.43232,4160.6,4160.5,0.1385]
[1760348749025,0.43237,4160.1,4160.0,0.1385]
[1760348749218,0.43237,4160.1,4160.0,0.3635]
[1760348749624,0.43237,4160.1,4160.0,0.6916]
[1760348749926,0.43237,4160.1,4160.0,0.4666]
[1760348750225,0.43237,4160.1,4160.0,0.6821]
[1760348750427,1.08069,4161.1,4160.1,0.3447]
[1760348750622,0.43232,4160.6,4160.5,0.6946]
[1760348750819,3.61522503,4160.6,4160.5,0.6946]
[1760348751222,4.15538152,4160.6,4160.5,0.4791]
[1760348751422,0.43237,4160.1,4160.0,0.1385]
[1760348751624,1.08097,4160.0,4159.6,1.51017849]
[1760348751824,0.43242,4159.7,4159.6,0.2155]
[1760348752026,0.43242,4159.7,4159.6,0.5602]
[1760348752221,0.43242,4159.7,4159.6,0.7829]
[1760348753435,0.43242,4159.7,4159.6,0.5602]
[1760348754229,0.43242,4159.7,4159.6,0.7829]
[1760348757131,0.43241,4159.8,4159.7,0.7829]
[1760348758534,0.43232,4160.6,4160.5,0.3499]
[1760348758935,3.55773336,4160.6,4160.5,0.3499]
[1760348759135,3.55773336,4160.6,4160.5,0.6946]
[1760348760336,0.43237,4160.1,4160.0,0.3499]
[1760348760737,0.43237,4160.1,4160.0,3.5577]
[1760348760942,0.43237,4160.1,4160.0,4.1251]
[1760348761739,0.43232,4160.6,4160.5,0.1344]
[1760348761947,0.43232,4160.6,4160.5,3.7804]
[1760348762442,0.43232,4160.6,4160.5,4.1251]
[1760348763545,1.08051,4161.8,4161.5,0.6946]
[1760348763746,0.43402333,4161.6,4161.5,0.6946]
[1760348763939,3.61136364,4161.6,4161.5,0.9173]
[1760348764144,0.43402333,4161.6,4161.5,0.9173]
[1760348764943,0.00180333,4161.6,4161.5,0.9173]
[1760348768555,0.00180333,4161.6,4161.5,0.6946]